fUSD/lending_fUSD_20260120
["ID","MTS","AMOUNT","RATE_DAILY","PERIOD"]
[402737075,1768867832035,-500.0,0.00015973,2]
[402737076,1768867832045,-200.0,0.0001644,2]
[402737077,1768867832055,-3504.18069962,0.0001644,2]
[402737078,1768867832076,-227.15,0.00016488,2]
[402737079,1768867832099,-3198.30907282,0.00016501,2]
[402737080,1768867832108,-300.0,0.00016539,2]
[402737081,1768867832120,-671.0,0.00016539,2]
[402737082,1768867832130,-300.0,0.0001654,2]
[402737083,1768867832141,-500.0,0.0001654,2]
[402737084,1768867832151,-500.0,0.0001654,2]
[402737085,1768867832162,-500.0,0.0001654,2]
[402737086,1768867832173,-300.0,0.0001654,2]
[402737087,1768867832184,-1000.0,0.0001654,2]
[402737088,1768867832195,-1000.0,0.0001654,2]
[402737089,1768867832204,-1000.0,0.0001654,2]
[402737090,1768867832214,-256.99397884,0.0001654,2]
[402737091,1768867832224,-500.0,0.0001654,2]
[402737092,1768867832233,-588.86813328,0.0001654,2]
[402737093,1768867832243,-500.0,0.0001654,2]
[402737094,1768867832254,-381.46219705,0.0001654,2]
[402737095,1768867832267,-2532.92622963,0.00017129,2]
[402737096,1768867832279,-151.0,0.00017207,2]
[402737097,1768867832289,-151.0,0.00017207,2]
[402737098,1768867832300,-1337.61532521,0.00017334,2]
[402737099,1768867832310,-525.93896877,0.0001757,2]
[402737100,1768867832320,-195.0,0.0001757,2]
[402737101,1768867832331,-3504.18069962,0.00017753,2]
[402737102,1768867832341,-3198.30907281,0.00017768,2]
[402737103,1768867832351,-336.54430369,0.00017784,2]
[402737104,1768867832361,-994.5,0.00017836,2]
[402737106,1768867832370,-500.0,0.00017899,2]
[402737108,1768867832380,-500.0,0.00017899,2]
[402737110,1768867832390,-238.94893707,0.00017899,2]
[402737111,1768867832400,-10000.0,0.000179,2]
[402737113,1768867832410,-500.0,0.00017973,2]
[402737114,1768867832420,-500.0,0.00017973,2]
[402737115,1768867832430,-500.0,0.00017999,2]
[402737116,1768867832439,-500.0,0.00017999,2]
[402737117,1768867832454,-500.0,0.00017999,2]
[402737119,1768867832463,-500.0,0.00017999,2]
[402737121,1768867832473,-500.0,0.00017999,2]
[402737123,1768867832484,-500.0,0.00017999,2]
[402737125,1768867832493,-500.0,0.00017999,2]
[402737126,1768867832503,-193.15801602,0.00017999,2]
[402737127,1768867832512,-569.17,0.00017999,2]
[402737128,1768867832524,-1015.14,0.00018,7]
[402737129,1768867832537,-2532.92622956,0.00018426,2]
[402737130,1768867832548,-161.01920204,0.00018497,2]
[402737131,1768867832557,-1000.0,0.00018521,2]
[402737132,1768867832567,-835.0,0.00018548,2]
[402737133,1768867832579,-994.5,0.00018587,2]
[402737134,1768867832589,-163.02902639,0.00018973,2]
[402737135,1768867832598,-3198.30907281,0.00019034,2]
[402737136,1768867832610,-3504.18069962,0.00019066,6]
[402737137,1768867832619,-500.0,0.00019068,2]
[402737138,1768867832629,-200.0,0.00019149,2]
[402737139,1768867832639,-500.0,0.00019178,2]
[402737140,1768867832649,-263.0248647,0.00019178,2]
[402737141,1768867832659,-1939.76,0.00019273,2]
[402737142,1768867832669,-500.0,0.00019334,3]
[402737143,1768867832681,-994.5,0.00019339,2]
[402737144,1768867832691,-491.75,0.00019449,2]
[402737145,1768867832701,-695.24,0.00019482,2]
[402737146,1768867832710,-835.0,0.00019609,2]
[402737147,1768867832720,-2000.0,0.000197,2]
[402737148,1768867832731,-662.21,0.00019706,2]
[402737149,1768867832741,-2532.92622956,0.00019723,2]
[402737150,1768867832751,-150.0,0.00019973,2]
[402737151,1768867832761,-500.0,0.00019973,2]
[402737152,1768867832772,-150.0,0.0002,2]
[402737153,1768867832782,-994.5,0.0002009,2]
[402737154,1768867832793,-1696.37689431,0.00020114,7]
[402737155,1768867832803,-3198.30907281,0.00020301,2]
[402737156,1768867832813,-180.0,0.00020332,2]
[402737157,1768867832823,-1522.7286764,0.00020379,12]
[402737158,1768867832843,-952.52308348,0.00020379,12]
[402737159,1768867832876,-1028.92893974,0.00020379,12]
[402737160,1768867832886,-662.21,0.00020445,2]
[402737161,1768867832896,-500.0,0.00020518,2]
[402737162,1768867832906,-222.21280469,0.00020518,2]
[402737163,1768867832916,-164.74746159,0.00020518,2]
[402737164,1768867832926,-500.0,0.00020518,2]
[402737165,1768867832935,-395.83434524,0.00020518,2]
[402737166,1768867832946,-571.76360524,0.00020518,2]
[402737167,1768867832955,-500.0,0.00020518,2]
[402737168,1768867832965,-500.0,0.00020518,2]
[402737169,1768867832975,-500.0,0.00020518,2]
[402737170,1768867832985,-500.0,0.00020518,2]
[402737171,1768867832995,-408.81659894,0.00020518,2]
[402737172,1768867833007,-91.18340106,0.00020518,2]
[402737173,1768867833017,-500.0,0.00020518,2]
[402737174,1768867833028,-500.0,0.00020518,2]
[402737175,1768867833038,-500.0,0.00020518,2]
[402737176,1768867833049,-500.0,0.00020518,2]
[402737177,1768867833058,-500.0,0.00020518,2]
[402737178,1768867833069,-500.0,0.00020518,2]
[402737179,1768867833079,-200.23452367,0.00020518,2]
[402737180,1768867833090,-500.0,0.00020518,2]
[402737181,1768867833101,-500.0,0.00020518,2]
[402737182,1768867833111,-202.01,0.00020519,2]
[402737183,1768867833121,-151.0,0.00020519,2]
[402737184,1768867833131,-322.6107,0.00020519,2]
[402737185,1768867833142,-187.78006525,0.00020519,2]
[402737186,1768867833152,-174.61919141,0.00020519,2]
[402737187,1768867833162,-1000.0,0.00020519,2]
[402737188,1768867833172,-1000.0,0.00020519,2]
[402737189,1768867833181,-1000.0,0.00020519,2]
[402737190,1768867833191,-1000.0,0.00020519,2]
[402737191,1768867833201,-1000.0,0.00020519,2]
[402737192,1768867833211,-419.99968477,0.00020519,2]
[402737193,1768867833223,-580.00031523,0.00020519,2]
[402737194,1768867833233,-578.20924308,0.00020519,2]
[402737195,1768867833243,-729.31251323,0.00020519,2]
[402737210,1768867838187,-270.68748677,0.00020519,2]
[402737211,1768867838197,-324.64893886,0.00020519,2]
[402737212,1768867838209,-675.35106114,0.00020519,2]
[402737213,1768867838218,-106.49336981,0.00020519,2]
[402737214,1768867838265,-478.95997779,0.00020519,2]
[402737215,1768867838278,-414.5466524,0.00020519,2]
[402737216,1768867838287,-1000.0,0.00020519,2]
[402737217,1768867838298,-646.65982734,0.00020519,2]
[402737218,1768867838307,-1000.0,0.00020519,2]
[402737219,1768867838317,-1000.0,0.00020519,2]
[402737220,1768867838326,-1000.0,0.00020519,2]
[402737221,1768867838336,-918.17410015,0.00020519,2]
[402737222,1768867838345,-151.0,0.00020519,2]
[402737223,1768867838355,-514.84070869,0.00020519,2]
[402737224,1768867838364,-4444.0,0.00020519,2]
[402737225,1768867838373,-3293.65266499,0.00020519,2]
[402737226,1768867838382,-620.0,0.00020519,2]
[402737227,1768867838391,-250.0,0.00020521,2]
[402737228,1768867838401,-150.0,0.00020688,2]
[402737229,1768867838411,-213.0,0.00020688,2]
[402737230,1768867838420,-250.0,0.00020688,2]
[402737231,1768867838430,-150.0,0.00020688,2]
[402737232,1768867838439,-150.381,0.00020688,2]
[402737233,1768867838449,-171.292,0.00020688,2]
[402737234,1768867838459,-297.611,0.00020688,2]
[402737235,1768867838468,-150.193,0.00020688,2]
[402737236,1768867838477,-150.0,0.00020688,2]
[402737237,1768867838487,-150.0,0.00020688,2]
[402737238,1768867838496,-150.0,0.00020688,2]
[402737239,1768867838506,-150.044,0.00020688,2]
[402737240,1768867838516,-615.0,0.00020688,2]
[402737241,1768867838526,-1414.045,0.00020688,2]
[402737242,1768867838536,-573.33181791,0.00020688,2]
[402737243,1768867838550,-758.66818209,0.00020688,2]
[402737245,1768867838560,-1268.0,0.00020688,2]
[402737247,1768867838569,-342.0,0.00020688,2]
[402737248,1768867838581,-915.0,0.00020688,2]
[402737249,1768867838591,-842.06848212,0.00020688,2]
[402737250,1768867838602,-359.93151788,0.00020688,2]
[402737251,1768867838612,-1893.16408869,0.00020688,2]
[402737252,1768867840501,-2932.83591131,0.00020688,2]
[402737253,1768867840510,-2440.0,0.00020688,2]
[402737254,1768867840520,-6562.0,0.00020688,2]
[402737255,1768867840530,-202.01,0.00020793,2]
[402737256,1768867840542,-994.5,0.00020841,2]
[402737258,1768867840798,-200.0,0.00020885,2]
[402737259,1768867840882,-1500.0,0.000209,2]
[402737260,1768867840892,-2532.92622956,0.00021019,2]
[402737261,1768867840902,-229.35831624,0.00021067,2]
[402737262,1768867840911,-209.40437684,0.00021067,2]
[402737263,1768867840922,-181.08010149,0.00021067,2]
[402737264,1768867840932,-151.0,0.00021067,2]
[402737265,1768867840941,-533.88981491,0.00021067,2]
[402737266,1768867840951,-350.0,0.00021068,2]
[402737267,1768867840960,-250.0,0.00021105,2]
[402737268,1768867840969,-662.21,0.00021183,2]
[402737269,1768867840979,-163.0,0.00021322,2]
[402737270,1768867840989,-3198.30907281,0.00021567,2]
[402737271,1768867840998,-994.5,0.00021592,2]
[402737272,1768867841007,-4476.76546339,0.00021614,7]
[402737273,1768867841017,-7897.54492539,0.00021614,7]
[402737274,1768867841026,-181.31915517,0.00021615,2]
[402737275,1768867841035,-553.64373807,0.00021615,2]
[402737276,1768867841045,-433.18312946,0.00021616,2]
[402737277,1768867841054,-154.07,0.00021774,2]
[402737278,1768867841064,-150.0,0.00021863,2]
[402737279,1768867841074,-500.0,0.00021863,2]
[402737280,1768867841083,-150.0,0.00021863,2]
[402737281,1768867841092,-150.0,0.00021863,2]
[402737282,1768867841102,-150.0,0.00021863,2]
[402737283,1768867841111,-500.0,0.00021863,2]
[402737284,1768867841120,-150.0,0.00021863,2]
[402737285,1768867841130,-500.0,0.00021863,2]
[402737286,1768867841139,-500.0,0.00021863,2]
[402737287,1768867841148,-500.0,0.00021863,2]
[402737288,1768867841157,-150.0,0.00021863,2]
[402737289,1768867841167,-500.0,0.00021863,2]
[402737290,1768867841176,-150.0,0.00021863,2]
[402737291,1768867841185,-150.0,0.00021863,2]
[402737292,1768867841194,-150.0,0.00021863,2]
[402737293,1768867841204,-150.0,0.00021863,2]
[402737294,1768867841214,-500.0,0.00021863,2]
[402737295,1768867841223,-241.0859787,0.00021863,2]
[402737296,1768867841232,-500.0,0.00021863,2]
[402737297,1768867841241,-500.0,0.00021863,2]
[402737298,1768867841251,-223.77079198,0.00021887,2]
[402737299,1768867841260,-162.70783595,0.00021887,2]
[402737300,1768867841270,-322.6107,0.00021888,2]
[402737301,1768867841279,-4444.0,0.00021888,2]
[402737302,1768867841289,-918.90149509,0.000219,2]
[402737303,1768867841298,-471.70879315,0.000219,2]
[402737304,1768867841307,-500.0,0.00021918,2]
[402737305,1768867841317,-150.0,0.00021918,2]
[402737306,1768867841326,-150.0,0.00021918,2]
[402737307,1768867841336,-150.0,0.00021918,2]
[402737308,1768867841345,-500.0,0.00021918,2]
[402737309,1768867841355,-150.0,0.00021918,2]
[402737310,1768867841364,-500.0,0.00021918,2]
[402737311,1768867841374,-500.0,0.00021918,2]
[402737312,1768867841383,-500.0,0.00021918,2]
[402737313,1768867841392,-500.0,0.00021918,2]
[402737314,1768867841402,-150.77075567,0.00021918,2]
[402737315,1768867841411,-150.0,0.00021918,2]
[402737316,1768867841421,-150.0,0.00021918,2]
[402737317,1768867841430,-150.0,0.00021918,2]
[402737318,1768867841439,-500.0,0.00021918,2]
[402737319,1768867841448,-500.0,0.00021918,2]
[402737320,1768867841458,-500.0,0.00021918,2]
[402737321,1768867841467,-1218.309,0.00021918,2]
[402737322,1768867841476,-150.0,0.00021918,2]
[402737323,1768867841486,-150.0,0.00021918,2]
[402737324,1768867841496,-662.21,0.00021922,2]
[402737325,1768867841506,-984.56,0.0002197,2]
[402737326,1768867841516,-500.0,0.00021973,2]
[402737327,1768867841525,-150.0,0.00021973,2]
[402737328,1768867841535,-150.0,0.00021973,2]
[402737329,1768867841549,-150.0,0.00021973,2]
[402737330,1768867841558,-500.0,0.00021973,2]
[402737331,1768867841567,-209.71778513,0.00021973,2]
[402737332,1768867841577,-325.70575154,0.00021973,2]
[402737333,1768867841587,-500.0,0.00021973,2]
[402737334,1768867841597,-384.15160057,0.00021973,2]
[402737335,1768867841607,-500.0,0.00021973,2]
[402737336,1768867841617,-150.0,0.00021973,2]
[402737337,1768867841625,-200.0,0.00021973,2]
[402737338,1768867841635,-200.0,0.00021973,2]
[402737339,1768867841644,-499.43975048,0.00021973,2]
[402737340,1768867841653,-500.0,0.00021973,2]
[402737341,1768867841663,-500.0,0.00021973,2]
[402737342,1768867841672,-150.0,0.00021973,2]
[402737343,1768867841682,-151.0,0.00021984,2]
[402737344,1768867841692,-33496.5954738,0.00021987,2]
[402737345,1768867841701,-1322.9513969,0.00021987,2]
[402737346,1768867841711,-97441.43788433,0.00021987,2]
[402737350,1768867843203,-32343.65364383,0.00021987,2]
[402737352,1768867843215,-386.49005528,0.00021987,2]
[402737354,1768867843226,-1219.4810845,0.00021987,2]
[402737355,1768867843238,-449.495,0.00021987,2]
[402737356,1768867843250,-369.20946193,0.00021987,2]
[402737357,1768867843263,-241587.48113763,0.00021987,2]
[402737358,1768867843272,-350.0,0.00021987,2]
[402737359,1768867843282,-350.0,0.00021987,2]
[402737360,1768867843291,-450.0,0.00021987,2]
[402737361,1768867843300,-1000.0,0.00022,8]
[402737362,1768867843310,-1000.0,0.00022,8]
[402737363,1768867843320,-1000.0,0.00022,8]
[402737364,1768867843329,-1000.0,0.00022,8]
[402737365,1768867843339,-1000.0,0.00022,8]
[402737366,1768867843348,-1000.0,0.00022,8]
[402737367,1768867843358,-1000.0,0.00022,8]
[402737368,1768867843367,-1000.0,0.00022,8]
[402737369,1768867843377,-1000.0,0.00022,8]
[402737370,1768867843386,-1000.0,0.00022,8]
[402737371,1768867843395,-1000.0,0.00022,8]
[402737372,1768867843404,-1000.0,0.00022,8]
[402737373,1768867843414,-1000.0,0.00022,8]
[402737374,1768867843423,-1000.0,0.00022,8]
[402737375,1768867843432,-1000.0,0.00022,8]
[402737376,1768867843442,-1000.0,0.00022,8]
[402737377,1768867843452,-258791.06339494,0.00022,4]
[402737378,1768867843462,-151.0,0.00022,2]
[402737379,1768867843471,-151.0,0.00022,2]
[402737380,1768867843481,-151.0,0.00022,2]
[402737381,1768867843490,-151.0,0.00022,2]
[402737382,1768867843499,-151.0,0.00022,2]
[402737383,1768867843509,-151.0,0.00022,2]
[402737384,1768867843518,-151.0,0.00022,2]
[402737385,1768867843528,-151.0,0.00022,2]
[402737386,1768867843539,-151.0,0.00022,2]
[402737387,1768867843550,-151.0,0.00022,2]
[402737388,1768867843559,-151.0,0.00022,2]
[402737389,1768867843568,-151.0,0.00022,2]
[402737390,1768867843578,-151.0,0.00022,2]
[402737391,1768867843589,-151.0,0.00022,2]
[402737392,1768867843599,-151.0,0.00022,2]
[402737393,1768867843608,-200.0,0.00022,2]
[402737394,1768867843619,-9125.68,0.00022,7]
[402737395,1768867843628,-25000.0,0.00022,3]
[402737396,1768867843637,-2033.4417916,0.00022,2]
[402737397,1768867843646,-152.0,0.00022,2]
[402737399,1768867843656,-152.0,0.00022,2]
[402737400,1768867843666,-11373.84305597,0.00022,3]
[402737401,1768867843675,-151.0,0.00022,2]
[402737402,1768867843685,-1264.0,0.00022,2]
[402737403,1768867843694,-154.0,0.00022,2]
[402737404,1768867843704,-154.0,0.00022,2]
[402737405,1768867843714,-1264.0,0.00022,2]
[402737406,1768867843723,-154.0,0.00022,2]
[402737407,1768867843733,-154.0,0.00022,2]
[402737408,1768867843743,-151.0,0.00022,2]
[402737409,1768867843752,-154.0,0.00022,2]
[402737410,1768867843762,-154.0,0.00022,2]
[402737411,1768867843771,-1264.0,0.00022,2]
[402737412,1768867843780,-1264.0,0.00022,2]
[402737413,1768867843789,-1264.0,0.00022,2]
[402737414,1768867843797,-500.0,0.00022027,2]
[402737415,1768867843806,-250.0,0.00022027,2]
[402737417,1768867843816,-250.0,0.00022027,2]
[402737419,1768867843826,-500.0,0.00022027,2]
[402737421,1768867843835,-500.0,0.00022027,2]
[402737423,1768867843844,-150.0,0.00022027,2]
[402737425,1768867843854,-500.0,0.00022027,2]
[402737426,1768867843863,-500.0,0.00022027,2]
[402737427,1768867843873,-500.0,0.00022082,2]
[402737428,1768867843883,-500.0,0.00022082,2]
[402737429,1768867843893,-298.56508977,0.00022082,2]
[402737430,1768867843903,-150.0,0.00022082,2]
[402737431,1768867843913,-500.0,0.00022082,2]
[402737432,1768867843922,-500.0,0.00022082,2]
[402737433,1768867843931,-1000.0,0.000221,2]
[402737434,1768867843942,-981.0,0.000221,2]
[402737435,1768867843951,-500.0,0.00022137,2]
[402737436,1768867843961,-250.0,0.00022137,2]
[402737437,1768867843971,-450.0,0.00022137,2]
[402737438,1768867843979,-500.0,0.00022137,2]
[402737439,1768867843989,-186.08505236,0.00022163,2]
[402737440,1768867844504,-388.04350401,0.00022163,2]
[402737441,1768867844525,-200.0,0.0002222,2]
[402737442,1768867844545,-174.4,0.00022229,2]
[402737443,1768867844562,-307.0,0.000223,2]
[402737444,1768867844580,-300.0,0.000223,2]
[402737445,1768867844595,-2532.92622956,0.00022316,2]
[402737446,1768867844615,-538.86986014,0.00022344,2]
[402737447,1768867844629,-437.8993,0.00022344,2]
[402737448,1768867844647,-17.73083986,0.00022344,2]
[402737449,1768867844671,-326.9041519,0.00022385,2]
[402737450,1768867844689,-543.3758481,0.00022385,2]
[402737451,1768867844705,-14.58416216,0.00022442,2]
[402737452,1768867844731,-152.53982436,0.00022442,2]
[402737453,1768867844746,-559.64,0.00022487,2]
[402737454,1768867844762,-761.74,0.00022553,2]
[402737455,1768867844777,-11814.25488724,0.00022614,7]
[402737456,1768867844793,-150.0,0.00022647,2]
[402737457,1768867844809,-662.21,0.00022661,2]
[402737458,1768867844824,-1600.0,0.00022663,2]
[402737459,1768867844840,-595.37131296,0.00022711,2]
[402737460,1768867844856,-1216.64,0.00022739,2]
[402737461,1768867844871,-1228.93,0.00022739,2]
[402737462,1768867844885,-1228.93,0.00022739,2]
[402737463,1768867844901,-4113.0,0.00022833,2]
[402737464,1768867844917,-3198.30907281,0.00022834,2]
[402737465,1768867844933,-1000.0,0.00022886,2]
[402737466,1768867844949,-1490.39,0.000229,3]
[402737467,1768867844965,-835.0,0.00022914,3]
[402737468,1768867844981,-400.0,0.00023,2]
[402737469,1768867844996,-994.5,0.00023095,2]
[402737470,1768867845012,-9125.68,0.000231,7]
[402737471,1768867845027,-151.0,0.00023111,7]
[402737472,1768867845042,-15985.1043,0.00023114,7]
[402737473,1768867845058,-500.0,0.00023193,2]
[402737474,1768867845073,-500.0,0.00023194,2]
[402737475,1768867845089,-500.0,0.00023195,2]
[402737476,1768867845104,-499.9999,0.00023196,2]
[402737477,1768867845120,-1228.93,0.00023203,2]
[402737478,1768867845136,-200.0,0.00023213,2]
[402737479,1768867845151,-4444.0,0.00023257,2]
[402737480,1768867845166,-578.20924308,0.00023258,2]
[402737481,1768867845182,-670.58624095,0.00023258,2]
[402737482,1768867845197,-617.40005154,0.00023259,2]
[402737483,1768867845213,-544.0,0.00023295,2]
[402737484,1768867845229,-544.0,0.00023318,2]
[402737485,1768867845244,-1308.0,0.000234,2]
[402737486,1768867845259,-1000.0,0.000234,2]
[402737487,1768867845275,-870.28,0.00023403,2]
[402737488,1768867845290,-544.0,0.00023409,2]
[402737489,1768867845307,-2173.12079,0.0002356,30]
[402737490,1768867845323,-544.0,0.00023585,2]
[402737491,1768867845338,-2532.92622956,0.00023613,2]
[402737492,1768867845353,-150.0,0.00023688,2]
[402737493,1768867845369,-150.0,0.00023688,2]
[402737494,1768867845384,-150.0,0.00023688,2]
[402737495,1768867845399,-150.0,0.00023688,2]
[402737496,1768867845415,-150.0,0.00023688,2]
[402737497,1768867845429,-150.0,0.00023688,2]
[402737498,1768867845444,-150.0,0.00023688,2]
[402737499,1768867845459,-150.0,0.00023688,2]
[402737500,1768867845474,-615.0,0.00023688,2]
[402737501,1768867845490,-1407.0,0.00023688,2]
[402737502,1768867845505,-1332.0,0.00023688,2]
[402737503,1768867845520,-1268.0,0.00023688,2]
[402737504,1768867845537,-915.0,0.00023688,2]
[402737505,1768867845557,-1202.0,0.00023688,2]
[402737506,1768867845573,-4826.0,0.00023688,2]
[402737507,1768867845592,-2440.0,0.00023688,2]
[402737508,1768867845607,-6562.0,0.00023688,2]
[402737509,1768867845625,-544.0,0.00023755,2]
[402737510,1768867845641,-544.0,0.00023797,2]
[402737511,1768867845657,-533.8898149,0.00023807,2]
[402737512,1768867845672,-500.0,0.00023835,2]
[402737513,1768867845688,-1228.93,0.00023836,2]
[402737514,1768867845705,-400.0,0.00023842,5]
[402737515,1768867845721,-994.5,0.00023846,2]
[402737516,1768867845736,-483.68,0.00023876,2]
[402737517,1768867845751,-611.87,0.00023876,2]
[402737518,1768867845766,-611.87,0.00023876,2]
[402737519,1768867845781,-607.12,0.00023876,2]
[402737520,1768867845796,-165.99,0.00023891,2]
[402737521,1768867845813,-174.4,0.00023939,2]
[402737522,1768867845829,-500.0,0.00023973,2]
[402737523,1768867845844,-329.09,0.0002398,2]
[402737524,1768867845860,-1200.0,0.00024,4]
[402737525,1768867845874,-2000.0,0.00024,2]
[402737526,1768867845890,-500.0,0.00024042,2]
[402737527,1768867845904,-157.65,0.00024084,2]
[402737528,1768867845922,-9125.68,0.000241,7]
[402737529,1768867845937,-3198.30907281,0.000241,2]
[402737531,1768867845953,-1404.31999251,0.00024111,2]
[402737533,1768867845967,-200.0,0.00024113,2]
[402737535,1768867845982,-150.0,0.00024153,5]
[402737537,1768867845998,-150.0,0.00024153,5]
[402737538,1768867846013,-1228.93,0.00024219,2]
[402737539,1768867846029,-1083.69,0.00024225,30]
[402737540,1768867846044,-168.0,0.00024292,2]
[402737541,1768867846059,-500.0,0.00024297,2]
[402737542,1768867846075,-1054.1137576,0.00024304,2]
[402737543,1768867846092,-544.0,0.00024359,2]
[402737544,1768867846108,-784.0,0.00024397,2]
[402737545,1768867846125,-870.28,0.0002442,2]
[402737546,1768867846141,-544.0,0.00024428,2]
[402737547,1768867846155,-500.0,0.00024456,7]
[402737548,1768867846170,-1800.0,0.00024456,7]
[402737549,1768867846185,-900.0,0.00024456,7]
[402737550,1768867846200,-227.15,0.00024488,30]
[402737551,1768867846215,-544.0,0.00024539,2]
[402737552,1768867846230,-1412.5099,0.0002455,2]
[402737553,1768867846244,-1412.50991,0.0002455,2]
[402737554,1768867846259,-1412.50991,0.0002455,2]
[402737555,1768867846274,-200.0,0.00024572,2]
[402737556,1768867846288,-994.5,0.00024597,2]
[402737557,1768867846302,-168.0,0.00024638,2]
[402737558,1768867846316,-999.6,0.00024658,2]
[402737559,1768867846330,-1000.0,0.00024658,2]
[402737560,1768867846344,-206.37535858,0.000247,2]
[402737561,1768867846358,-24303.0,0.00024767,2]
[402737562,1768867846373,-355.19311393,0.0002479,2]
[402737563,1768867846388,-151.28,0.0002479,2]
[402737564,1768867846403,-151.28,0.0002479,2]
[402737565,1768867846417,-151.28,0.0002479,2]
[402737566,1768867846432,-151.28,0.0002479,2]
[402737567,1768867846446,-544.0,0.00024798,2]
[402737568,1768867846461,-500.0,0.00024799,2]
[402737569,1768867846476,-278.04402756,0.00024799,2]
[402737570,1768867846490,-500.0,0.00024799,2]
[402737571,1768867846505,-150.0,0.000248,2]
[402737572,1768867846520,-297104.02971095,0.000248,2]
[402737573,1768867846535,-173.63,0.000248,2]
[402737574,1768867846553,-1264.0,0.000248,2]
[402737575,1768867846568,-1264.0,0.000248,2]
[402737576,1768867846583,-1264.0,0.000248,2]
[402737577,1768867846600,-1264.0,0.000248,2]
[402737578,1768867846615,-1264.0,0.000248,2]
[402737579,1768867846629,-1264.0,0.000248,2]
[402737581,1768867846642,-1264.0,0.000248,2]
[402737582,1768867846656,-1264.0,0.000248,2]
[402737583,1768867846670,-1264.0,0.000248,2]
[402737584,1768867846684,-1264.0,0.000248,2]
[402737585,1768867846699,-1264.0,0.000248,2]
[402737586,1768867846714,-1264.0,0.000248,2]
[402737587,1768867846727,-1264.0,0.000248,2]
[402737588,1768867846747,-1264.0,0.000248,2]
[402737589,1768867846765,-1264.0,0.000248,2]
[402737590,1768867846784,-1264.0,0.000248,2]
[402737591,1768867846802,-1264.0,0.000248,2]
[402737592,1768867846819,-1264.0,0.000248,2]
[402737593,1768867846835,-1264.0,0.000248,2]
[402737594,1768867846850,-1264.0,0.000248,2]
[402737595,1768867846866,-154.0,0.000248,2]
[402737596,1768867846881,-154.0,0.000248,2]
[402737597,1768867846896,-154.0,0.000248,2]
[402737598,1768867846911,-151.0,0.000248,2]
[402737599,1768867846927,-151.0,0.000248,2]
[402737600,1768867846942,-151.0,0.000248,2]
[402737601,1768867846956,-151.0,0.000248,2]
[402737602,1768867846972,-151.0,0.000248,2]
[402737603,1768867846986,-151.0,0.000248,2]
[402737604,1768867847001,-151.0,0.000248,2]
[402737605,1768867847015,-151.0,0.000248,2]
[402737606,1768867847029,-151.0,0.000248,2]
[402737607,1768867847044,-151.0,0.000248,2]
[402737608,1768867847059,-151.0,0.000248,2]
[402737609,1768867847519,-151.0,0.000248,2]
[402737610,1768867847529,-151.0,0.000248,2]
[402737611,1768867847541,-151.0,0.000248,2]
[402737612,1768867847551,-151.0,0.000248,2]
[402737613,1768867847560,-151.0,0.000248,2]
[402737614,1768867847570,-151.0,0.000248,2]
[402737615,1768867847579,-151.0,0.000248,2]